{"text_format":"3","workbook":"xlsx","n_sheets":4,"sheets":["Резюме","Общи суми","Приход","Разноски"],"not_rendered":{"defined_names":13},"read":"whole","date_system":"1900"}

{"sheet":"Резюме","index":0,"n_rows":6,"n_cols":3,"rows_kept":6,"merged":[[0,1,0,2],[1,1,1,2]]}
[null,"МЕСЕЧЕН СЕМЕЕН БЮДЖЕТ"]
[null,"РЕЗЮМЕ"]
[null,"Баланс","Сума"]
[null,"Прогнозен баланс (прогнозен приход минус разходи)",{"$f":"ПланиранПриход-ПланираниРазходи","v":{"v":1114,"d":"1,114 лв."}}]
[null,"Действителен баланс (действителни приходи минус разходи)",{"$f":"ДействителенПриход-ДействителниРазходи","v":{"v":997,"d":"997 лв."}}]
[null,"Разлика (действителни минус прогнозирани)",{"$f":"ДействителенБаланс-ПланиранБаланс","v":{"v":-117,"d":"-117 лв."}}]

{"sheet":"Общи суми","index":1,"n_rows":6,"n_cols":3,"rows_kept":6,"merged":[[0,1,0,2],[1,1,1,2]]}
[null,{"$f":"Заглавие_На_Работна_Книга","v":"МЕСЕЧЕН СЕМЕЕН БЮДЖЕТ"}]
[null,"Общи суми"]
[null,"Общи суми","Сума"]
[null,"Общо прогнозни разходи",{"$f":"ПланираниРазходи","v":{"v":4486,"d":"4,486 лв."}}]
[null,"Общо действителни разходи",{"$f":"ДействителниРазходи","v":{"v":4603,"d":"4,603 лв."}}]
[null,"Обща разлика",{"$f":"C4-C5","v":{"v":-117,"d":"-117 лв."}}]

{"sheet":"Приход","index":2,"n_rows":7,"n_cols":5,"rows_kept":7,"merged":[[0,1,0,4],[1,1,1,4]]}
[null,{"$f":"Заглавие_На_Работна_Книга","v":"МЕСЕЧЕН СЕМЕЕН БЮДЖЕТ"}]
[null,"ПРИХОД"]
[null,"Прогнозен приход","Планиран","Действителен","Разлика"]
[null,"Приходи 1",{"v":4000,"d":"4,000.00 лв."},{"v":4000,"d":"4,000.00 лв."},{"$f":"ТаблицаПриход[[#This Row],[Планиран]]-ТаблицаПриход[[#This Row],[Действителен]]","v":{"v":0,"d":"0.00 лв."}}]
[null,"Приходи 2",{"v":1300,"d":"1,300.00 лв."},{"v":1300,"d":"1,300.00 лв."},{"$f":"ТаблицаПриход[[#This Row],[Планиран]]-ТаблицаПриход[[#This Row],[Действителен]]","v":{"v":0,"d":"0.00 лв."}}]
[null,"Допълнителен доход",{"v":300,"d":"300.00 лв."},{"v":300,"d":"300.00 лв."},{"$f":"ТаблицаПриход[[#This Row],[Планиран]]-ТаблицаПриход[[#This Row],[Действителен]]","v":{"v":0,"d":"0.00 лв."}}]
[null,"Общ месечен приход",{"$f":"SUBTOTAL(109,ТаблицаПриход[Планиран])","v":{"v":5600,"d":"5,600.00 лв."}},{"$f":"SUBTOTAL(109,ТаблицаПриход[Действителен])","v":{"v":5600,"d":"5,600.00 лв."}},{"$f":"SUBTOTAL(109,ТаблицаПриход[Разлика])","v":{"v":0,"d":"0.00 лв."}}]

{"sheet":"Разноски","index":3,"n_rows":80,"n_cols":6,"rows_kept":80,"merged":[[0,1,0,5],[1,1,1,5],[2,1,2,5]]}
[null,{"$f":"Заглавие_На_Работна_Книга","v":"МЕСЕЧЕН СЕМЕЕН БЮДЖЕТ"}]
[null,"РАЗНОСКИ"]
[]
[null,"Категория","Подкатегория","Планиран","Действителен","Разлика"]
[null,"Домакинство","Ипотека или наем",{"v":1000,"d":"1,000.00 лв."},{"v":1000,"d":"1,000.00 лв."},{"$f":"ТаблицаРазноски[[#This Row],[Планиран]]-ТаблицаРазноски[[#This Row],[Действителен]]","v":{"v":0,"d":"0.00 лв."}}]
[null,"Домакинство","Втора ипотека или наем",{"v":0,"d":"0.00 лв."},{"v":0,"d":"0.00 лв."},{"$f":"ТаблицаРазноски[[#This Row],[Планиран]]-ТаблицаРазноски[[#This Row],[Действителен]]","v":{"v":0,"d":"0.00 лв."}}]
[null,"Домакинство","Телефон",{"v":54,"d":"54.00 лв."},{"v":100,"d":"100.00 лв."},{"$f":"ТаблицаРазноски[[#This Row],[Планиран]]-ТаблицаРазноски[[#This Row],[Действителен]]","v":{"v":-46,"d":"-46.00 лв."}}]
[null,"Домакинство","Електричество",{"v":44,"d":"44.00 лв."},{"v":56,"d":"56.00 лв."},{"$f":"ТаблицаРазноски[[#This Row],[Планиран]]-ТаблицаРазноски[[#This Row],[Действителен]]","v":{"v":-12,"d":"-12.00 лв."}}]
[null,"Домакинство","Газ",{"v":22,"d":"22.00 лв."},{"v":28,"d":"28.00 лв."},{"$f":"ТаблицаРазноски[[#This Row],[Планиран]]-ТаблицаРазноски[[#This Row],[Действителен]]","v":{"v":-6,"d":"-6.00 лв."}}]
[null,"Домакинство","ВИК",{"v":8,"d":"8.00 лв."},{"v":8,"d":"8.00 лв."},{"$f":"ТаблицаРазноски[[#This Row],[Планиран]]-ТаблицаРазноски[[#This Row],[Действителен]]","v":{"v":0,"d":"0.00 лв."}}]
[null,"Домакинство","Кабелна телевизия",{"v":34,"d":"34.00 лв."},{"v":34,"d":"34.00 лв."},{"$f":"ТаблицаРазноски[[#This Row],[Планиран]]-ТаблицаРазноски[[#This Row],[Действителен]]","v":{"v":0,"d":"0.00 лв."}}]
[null,"Домакинство","Такса смет",{"v":10,"d":"10.00 лв."},{"v":10,"d":"10.00 лв."},{"$f":"ТаблицаРазноски[[#This Row],[Планиран]]-ТаблицаРазноски[[#This Row],[Действителен]]","v":{"v":0,"d":"0.00 лв."}}]
[null,"Домакинство","Поддръжка или ремонти",{"v":23,"d":"23.00 лв."},{"v":0,"d":"0.00 лв."},{"$f":"ТаблицаРазноски[[#This Row],[Планиран]]-ТаблицаРазноски[[#This Row],[Действителен]]","v":{"v":23,"d":"23.00 лв."}}]
[null,"Домакинство","Доставки",{"v":0,"d":"0.00 лв."},{"v":0,"d":"0.00 лв."},{"$f":"ТаблицаРазноски[[#This Row],[Планиран]]-ТаблицаРазноски[[#This Row],[Действителен]]","v":{"v":0,"d":"0.00 лв."}}]
[null,"Домакинство","Други",{"v":0,"d":"0.00 лв."},{"v":0,"d":"0.00 лв."},{"$f":"ТаблицаРазноски[[#This Row],[Планиран]]-ТаблицаРазноски[[#This Row],[Действителен]]","v":{"v":0,"d":"0.00 лв."}}]
[null,"Транспорт","Плащане автомобил 1",{"v":16,"d":"16.00 лв."},{"v":66,"d":"66.00 лв."},{"$f":"ТаблицаРазноски[[#This Row],[Планиран]]-ТаблицаРазноски[[#This Row],[Действителен]]","v":{"v":-50,"d":"-50.00 лв."}}]
[null,"Транспорт","Плащане автомобил 2",{"v":35,"d":"35.00 лв."},{"v":42,"d":"42.00 лв."},{"$f":"ТаблицаРазноски[[#This Row],[Планиран]]-ТаблицаРазноски[[#This Row],[Действителен]]","v":{"v":-7,"d":"-7.00 лв."}}]
[null,"Транспорт","Разходи за автобус/такси",{"v":1,"d":"1.00 лв."},{"v":62,"d":"62.00 лв."},{"$f":"ТаблицаРазноски[[#This Row],[Планиран]]-ТаблицаРазноски[[#This Row],[Действителен]]","v":{"v":-61,"d":"-61.00 лв."}}]
[null,"Транспорт","Застраховка",{"v":91,"d":"91.00 лв."},{"v":27,"d":"27.00 лв."},{"$f":"ТаблицаРазноски[[#This Row],[Планиран]]-ТаблицаРазноски[[#This Row],[Действителен]]","v":{"v":64,"d":"64.00 лв."}}]
[null,"Транспорт","Лицензи",{"v":80,"d":"80.00 лв."},{"v":89,"d":"89.00 лв."},{"$f":"ТаблицаРазноски[[#This Row],[Планиран]]-ТаблицаРазноски[[#This Row],[Действителен]]","v":{"v":-9,"d":"-9.00 лв."}}]
[null,"Транспорт","Гориво",{"v":18,"d":"18.00 лв."},{"v":93,"d":"93.00 лв."},{"$f":"ТаблицаРазноски[[#This Row],[Планиран]]-ТаблицаРазноски[[#This Row],[Действителен]]","v":{"v":-75,"d":"-75.00 лв."}}]
[null,"Транспорт","Поддръжка",{"v":34,"d":"34.00 лв."},{"v":37,"d":"37.00 лв."},{"$f":"ТаблицаРазноски[[#This Row],[Планиран]]-ТаблицаРазноски[[#This Row],[Действителен]]","v":{"v":-3,"d":"-3.00 лв."}}]
[null,"Транспорт","Други",{"v":83,"d":"83.00 лв."},{"v":61,"d":"61.00 лв."},{"$f":"ТаблицаРазноски[[#This Row],[Планиран]]-ТаблицаРазноски[[#This Row],[Действителен]]","v":{"v":22,"d":"22.00 лв."}}]
[null,"Застраховка","Жилище",{"v":48,"d":"48.00 лв."},{"v":63,"d":"63.00 лв."},{"$f":"ТаблицаРазноски[[#This Row],[Планиран]]-ТаблицаРазноски[[#This Row],[Действителен]]","v":{"v":-15,"d":"-15.00 лв."}}]
[null,"Застраховка","Здравеопазване",{"v":21,"d":"21.00 лв."},{"v":44,"d":"44.00 лв."},{"$f":"ТаблицаРазноски[[#This Row],[Планиран]]-ТаблицаРазноски[[#This Row],[Действителен]]","v":{"v":-23,"d":"-23.00 лв."}}]
[null,"Застраховка","Живот",{"v":35,"d":"35.00 лв."},{"v":65,"d":"65.00 лв."},{"$f":"ТаблицаРазноски[[#This Row],[Планиран]]-ТаблицаРазноски[[#This Row],[Действителен]]","v":{"v":-30,"d":"-30.00 лв."}}]
[null,"Застраховка","Други",{"v":14,"d":"14.00 лв."},{"v":75,"d":"75.00 лв."},{"$f":"ТаблицаРазноски[[#This Row],[Планиран]]-ТаблицаРазноски[[#This Row],[Действителен]]","v":{"v":-61,"d":"-61.00 лв."}}]
[null,"Храна","Хранителни стоки",{"v":79,"d":"79.00 лв."},{"v":0,"d":"0.00 лв."},{"$f":"ТаблицаРазноски[[#This Row],[Планиран]]-ТаблицаРазноски[[#This Row],[Действителен]]","v":{"v":79,"d":"79.00 лв."}}]
[null,"Храна","Заведения",{"v":56,"d":"56.00 лв."},{"v":50,"d":"50.00 лв."},{"$f":"ТаблицаРазноски[[#This Row],[Планиран]]-ТаблицаРазноски[[#This Row],[Действителен]]","v":{"v":6,"d":"6.00 лв."}}]
[null,"Храна","Други",{"v":96,"d":"96.00 лв."},{"v":23,"d":"23.00 лв."},{"$f":"ТаблицаРазноски[[#This Row],[Планиран]]-ТаблицаРазноски[[#This Row],[Действителен]]","v":{"v":73,"d":"73.00 лв."}}]
[null,"Деца","Медицински",{"v":90,"d":"90.00 лв."},{"v":90,"d":"90.00 лв."},{"$f":"ТаблицаРазноски[[#This Row],[Планиран]]-ТаблицаРазноски[[#This Row],[Действителен]]","v":{"v":0,"d":"0.00 лв."}}]
[null,"Деца","Облекло",{"v":33,"d":"33.00 лв."},{"v":30,"d":"30.00 лв."},{"$f":"ТаблицаРазноски[[#This Row],[Планиран]]-ТаблицаРазноски[[#This Row],[Действителен]]","v":{"v":3,"d":"3.00 лв."}}]
[null,"Деца","Обучение в училище",{"v":86,"d":"86.00 лв."},{"v":64,"d":"64.00 лв."},{"$f":"ТаблицаРазноски[[#This Row],[Планиран]]-ТаблицаРазноски[[#This Row],[Действителен]]","v":{"v":22,"d":"22.00 лв."}}]
[null,"Деца","Училищни пособия",{"v":76,"d":"76.00 лв."},{"v":2,"d":"2.00 лв."},{"$f":"ТаблицаРазноски[[#This Row],[Планиран]]-ТаблицаРазноски[[#This Row],[Действителен]]","v":{"v":74,"d":"74.00 лв."}}]
[null,"Деца","Организационни разходи или такси",{"v":60,"d":"60.00 лв."},{"v":90,"d":"90.00 лв."},{"$f":"ТаблицаРазноски[[#This Row],[Планиран]]-ТаблицаРазноски[[#This Row],[Действителен]]","v":{"v":-30,"d":"-30.00 лв."}}]
[null,"Деца","Пари за обяд",{"v":37,"d":"37.00 лв."},{"v":60,"d":"60.00 лв."},{"$f":"ТаблицаРазноски[[#This Row],[Планиран]]-ТаблицаРазноски[[#This Row],[Действителен]]","v":{"v":-23,"d":"-23.00 лв."}}]
[null,"Деца","Бавачка",{"v":22,"d":"22.00 лв."},{"v":70,"d":"70.00 лв."},{"$f":"ТаблицаРазноски[[#This Row],[Планиран]]-ТаблицаРазноски[[#This Row],[Действителен]]","v":{"v":-48,"d":"-48.00 лв."}}]
[null,"Деца","Играчки/игри",{"v":80,"d":"80.00 лв."},{"v":21,"d":"21.00 лв."},{"$f":"ТаблицаРазноски[[#This Row],[Планиран]]-ТаблицаРазноски[[#This Row],[Действителен]]","v":{"v":59,"d":"59.00 лв."}}]
[null,"Деца","Други",{"v":65,"d":"65.00 лв."},{"v":20,"d":"20.00 лв."},{"$f":"ТаблицаРазноски[[#This Row],[Планиран]]-ТаблицаРазноски[[#This Row],[Действителен]]","v":{"v":45,"d":"45.00 лв."}}]
[null,"Домашни любимци","Храна",{"v":37,"d":"37.00 лв."},{"v":34,"d":"34.00 лв."},{"$f":"ТаблицаРазноски[[#This Row],[Планиран]]-ТаблицаРазноски[[#This Row],[Действителен]]","v":{"v":3,"d":"3.00 лв."}}]
[null,"Домашни любимци","Медицински",{"v":74,"d":"74.00 лв."},{"v":86,"d":"86.00 лв."},{"$f":"ТаблицаРазноски[[#This Row],[Планиран]]-ТаблицаРазноски[[#This Row],[Действителен]]","v":{"v":-12,"d":"-12.00 лв."}}]
[null,"Домашни любимци","Поддържане",{"v":80,"d":"80.00 лв."},{"v":92,"d":"92.00 лв."},{"$f":"ТаблицаРазноски[[#This Row],[Планиран]]-ТаблицаРазноски[[#This Row],[Действителен]]","v":{"v":-12,"d":"-12.00 лв."}}]
[null,"Домашни любимци","Играчки",{"v":61,"d":"61.00 лв."},{"v":22,"d":"22.00 лв."},{"$f":"ТаблицаРазноски[[#This Row],[Планиран]]-ТаблицаРазноски[[#This Row],[Действителен]]","v":{"v":39,"d":"39.00 лв."}}]
[null,"Домашни любимци","Други",{"v":83,"d":"83.00 лв."},{"v":51,"d":"51.00 лв."},{"$f":"ТаблицаРазноски[[#This Row],[Планиран]]-ТаблицаРазноски[[#This Row],[Действителен]]","v":{"v":32,"d":"32.00 лв."}}]
[null,"Хигиенни материали","Медицински",{"v":28,"d":"28.00 лв."},{"v":10,"d":"10.00 лв."},{"$f":"ТаблицаРазноски[[#This Row],[Планиран]]-ТаблицаРазноски[[#This Row],[Действителен]]","v":{"v":18,"d":"18.00 лв."}}]
[null,"Хигиенни материали","Коса/нокти",{"v":25,"d":"25.00 лв."},{"v":81,"d":"81.00 лв."},{"$f":"ТаблицаРазноски[[#This Row],[Планиран]]-ТаблицаРазноски[[#This Row],[Действителен]]","v":{"v":-56,"d":"-56.00 лв."}}]
[null,"Хигиенни материали","Облекло",{"v":59,"d":"59.00 лв."},{"v":72,"d":"72.00 лв."},{"$f":"ТаблицаРазноски[[#This Row],[Планиран]]-ТаблицаРазноски[[#This Row],[Действителен]]","v":{"v":-13,"d":"-13.00 лв."}}]
[null,"Хигиенни материали","Химическо чистене",{"v":89,"d":"89.00 лв."},{"v":90,"d":"90.00 лв."},{"$f":"ТаблицаРазноски[[#This Row],[Планиран]]-ТаблицаРазноски[[#This Row],[Действителен]]","v":{"v":-1,"d":"-1.00 лв."}}]
[null,"Хигиенни материали","Здравен клуб",{"v":78,"d":"78.00 лв."},{"v":48,"d":"48.00 лв."},{"$f":"ТаблицаРазноски[[#This Row],[Планиран]]-ТаблицаРазноски[[#This Row],[Действителен]]","v":{"v":30,"d":"30.00 лв."}}]
[null,"Хигиенни материали","Организационни разходи или такси",{"v":6,"d":"6.00 лв."},{"v":73,"d":"73.00 лв."},{"$f":"ТаблицаРазноски[[#This Row],[Планиран]]-ТаблицаРазноски[[#This Row],[Действителен]]","v":{"v":-67,"d":"-67.00 лв."}}]
[null,"Хигиенни материали","Други",{"v":80,"d":"80.00 лв."},{"v":66,"d":"66.00 лв."},{"$f":"ТаблицаРазноски[[#This Row],[Планиран]]-ТаблицаРазноски[[#This Row],[Действителен]]","v":{"v":14,"d":"14.00 лв."}}]
[null,"Развлечения","Видео/DVD",{"v":11,"d":"11.00 лв."},{"v":29,"d":"29.00 лв."},{"$f":"ТаблицаРазноски[[#This Row],[Планиран]]-ТаблицаРазноски[[#This Row],[Действителен]]","v":{"v":-18,"d":"-18.00 лв."}}]
[null,"Развлечения","Компактдискове",{"v":77,"d":"77.00 лв."},{"v":32,"d":"32.00 лв."},{"$f":"ТаблицаРазноски[[#This Row],[Планиран]]-ТаблицаРазноски[[#This Row],[Действителен]]","v":{"v":45,"d":"45.00 лв."}}]
[null,"Развлечения","Филми",{"v":71,"d":"71.00 лв."},{"v":43,"d":"43.00 лв."},{"$f":"ТаблицаРазноски[[#This Row],[Планиран]]-ТаблицаРазноски[[#This Row],[Действителен]]","v":{"v":28,"d":"28.00 лв."}}]
[null,"Развлечения","Концерти",{"v":64,"d":"64.00 лв."},{"v":21,"d":"21.00 лв."},{"$f":"ТаблицаРазноски[[#This Row],[Планиран]]-ТаблицаРазноски[[#This Row],[Действителен]]","v":{"v":43,"d":"43.00 лв."}}]
[null,"Развлечения","Спортни събития",{"v":47,"d":"47.00 лв."},{"v":57,"d":"57.00 лв."},{"$f":"ТаблицаРазноски[[#This Row],[Планиран]]-ТаблицаРазноски[[#This Row],[Действителен]]","v":{"v":-10,"d":"-10.00 лв."}}]
[null,"Развлечения","Театър",{"v":28,"d":"28.00 лв."},{"v":1,"d":"1.00 лв."},{"$f":"ТаблицаРазноски[[#This Row],[Планиран]]-ТаблицаРазноски[[#This Row],[Действителен]]","v":{"v":27,"d":"27.00 лв."}}]
[null,"Развлечения","Други",{"v":13,"d":"13.00 лв."},{"v":42,"d":"42.00 лв."},{"$f":"ТаблицаРазноски[[#This Row],[Планиран]]-ТаблицаРазноски[[#This Row],[Действителен]]","v":{"v":-29,"d":"-29.00 лв."}}]
[null,"Заеми","Лични",{"v":65,"d":"65.00 лв."},{"v":6,"d":"6.00 лв."},{"$f":"ТаблицаРазноски[[#This Row],[Планиран]]-ТаблицаРазноски[[#This Row],[Действителен]]","v":{"v":59,"d":"59.00 лв."}}]
[null,"Заеми","Студентски",{"v":100,"d":"100.00 лв."},{"v":36,"d":"36.00 лв."},{"$f":"ТаблицаРазноски[[#This Row],[Планиран]]-ТаблицаРазноски[[#This Row],[Действителен]]","v":{"v":64,"d":"64.00 лв."}}]
[null,"Заеми","Кредитна карта",{"v":29,"d":"29.00 лв."},{"v":69,"d":"69.00 лв."},{"$f":"ТаблицаРазноски[[#This Row],[Планиран]]-ТаблицаРазноски[[#This Row],[Действителен]]","v":{"v":-40,"d":"-40.00 лв."}}]
[null,"Заеми","Кредитна карта",{"v":64,"d":"64.00 лв."},{"v":3,"d":"3.00 лв."},{"$f":"ТаблицаРазноски[[#This Row],[Планиран]]-ТаблицаРазноски[[#This Row],[Действителен]]","v":{"v":61,"d":"61.00 лв."}}]
[null,"Заеми","Кредитна карта",{"v":34,"d":"34.00 лв."},{"v":35,"d":"35.00 лв."},{"$f":"ТаблицаРазноски[[#This Row],[Планиран]]-ТаблицаРазноски[[#This Row],[Действителен]]","v":{"v":-1,"d":"-1.00 лв."}}]
[null,"Заеми","Други",{"v":38,"d":"38.00 лв."},{"v":52,"d":"52.00 лв."},{"$f":"ТаблицаРазноски[[#This Row],[Планиран]]-ТаблицаРазноски[[#This Row],[Действителен]]","v":{"v":-14,"d":"-14.00 лв."}}]
[null,"Данъци","Държавен",{"v":84,"d":"84.00 лв."},{"v":36,"d":"36.00 лв."},{"$f":"ТаблицаРазноски[[#This Row],[Планиран]]-ТаблицаРазноски[[#This Row],[Действителен]]","v":{"v":48,"d":"48.00 лв."}}]
[null,"Данъци","Областен",{"v":2,"d":"2.00 лв."},{"v":83,"d":"83.00 лв."},{"$f":"ТаблицаРазноски[[#This Row],[Планиран]]-ТаблицаРазноски[[#This Row],[Действителен]]","v":{"v":-81,"d":"-81.00 лв."}}]
[null,"Данъци","Местен",{"v":40,"d":"40.00 лв."},{"v":20,"d":"20.00 лв."},{"$f":"ТаблицаРазноски[[#This Row],[Планиран]]-ТаблицаРазноски[[#This Row],[Действителен]]","v":{"v":20,"d":"20.00 лв."}}]
[null,"Данъци","Други",{"v":35,"d":"35.00 лв."},{"v":72,"d":"72.00 лв."},{"$f":"ТаблицаРазноски[[#This Row],[Планиран]]-ТаблицаРазноски[[#This Row],[Действителен]]","v":{"v":-37,"d":"-37.00 лв."}}]
[null,"Спестявания или инвестиции","Пенсионна сметка",{"v":34,"d":"34.00 лв."},{"v":20,"d":"20.00 лв."},{"$f":"ТаблицаРазноски[[#This Row],[Планиран]]-ТаблицаРазноски[[#This Row],[Действителен]]","v":{"v":14,"d":"14.00 лв."}}]
[null,"Спестявания или инвестиции","Инвестиционна сметка",{"v":68,"d":"68.00 лв."},{"v":98,"d":"98.00 лв."},{"$f":"ТаблицаРазноски[[#This Row],[Планиран]]-ТаблицаРазноски[[#This Row],[Действителен]]","v":{"v":-30,"d":"-30.00 лв."}}]
[null,"Спестявания или инвестиции","Колеж",{"v":89,"d":"89.00 лв."},{"v":68,"d":"68.00 лв."},{"$f":"ТаблицаРазноски[[#This Row],[Планиран]]-ТаблицаРазноски[[#This Row],[Действителен]]","v":{"v":21,"d":"21.00 лв."}}]
[null,"Спестявания или инвестиции","Други",{"v":82,"d":"82.00 лв."},{"v":26,"d":"26.00 лв."},{"$f":"ТаблицаРазноски[[#This Row],[Планиран]]-ТаблицаРазноски[[#This Row],[Действителен]]","v":{"v":56,"d":"56.00 лв."}}]
[null,"Подаръци и дарения","Благотворителност 1",{"v":41,"d":"41.00 лв."},{"v":85,"d":"85.00 лв."},{"$f":"ТаблицаРазноски[[#This Row],[Планиран]]-ТаблицаРазноски[[#This Row],[Действителен]]","v":{"v":-44,"d":"-44.00 лв."}}]
[null,"Подаръци и дарения","Благотворителност 2",{"v":0,"d":"0.00 лв."},{"v":69,"d":"69.00 лв."},{"$f":"ТаблицаРазноски[[#This Row],[Планиран]]-ТаблицаРазноски[[#This Row],[Действителен]]","v":{"v":-69,"d":"-69.00 лв."}}]
[null,"Подаръци и дарения","Благотворителност 3",{"v":2,"d":"2.00 лв."},{"v":57,"d":"57.00 лв."},{"$f":"ТаблицаРазноски[[#This Row],[Планиран]]-ТаблицаРазноски[[#This Row],[Действителен]]","v":{"v":-55,"d":"-55.00 лв."}}]
[null,"Правни","Адвокат",{"v":7,"d":"7.00 лв."},{"v":98,"d":"98.00 лв."},{"$f":"ТаблицаРазноски[[#This Row],[Планиран]]-ТаблицаРазноски[[#This Row],[Действителен]]","v":{"v":-91,"d":"-91.00 лв."}}]
[null,"Правни","Издръжка",{"v":39,"d":"39.00 лв."},{"v":85,"d":"85.00 лв."},{"$f":"ТаблицаРазноски[[#This Row],[Планиран]]-ТаблицаРазноски[[#This Row],[Действителен]]","v":{"v":-46,"d":"-46.00 лв."}}]
[null,"Правни","Плащания по запор или решение",{"v":78,"d":"78.00 лв."},{"v":84,"d":"84.00 лв."},{"$f":"ТаблицаРазноски[[#This Row],[Планиран]]-ТаблицаРазноски[[#This Row],[Действителен]]","v":{"v":-6,"d":"-6.00 лв."}}]
[null,"Правни","Други",{"v":93,"d":"93.00 лв."},{"v":71,"d":"71.00 лв."},{"$f":"ТаблицаРазноски[[#This Row],[Планиран]]-ТаблицаРазноски[[#This Row],[Действителен]]","v":{"v":22,"d":"22.00 лв."}}]
[null,"Общо",{"$nulls":3},{"$f":"SUBTOTAL(109,ТаблицаРазноски[Разлика])","v":{"v":-75,"d":"-75.00 лв."}}]